[Event "November 21 Early 2023"]
[Site "https://www.chess.com"]
[Date "2023.11.21"]
[Round "1"]
[White "Goldin, Roman"]
[Black "Hua, Lefong"]
[Result "0-1"]
[Board "108"]
[TimeControl "180+1"]
[WhiteFideId "2803860"]
[BlackFideId "2602253"]
[WhiteElo "2312"]
[BlackElo "2727"]
[WhiteTeam "ISR"]
[BlackTeam "CAN"]
[WhiteClock "0:00:00"]
[BlackClock "0:01:04"]

1. e4 {[%clk 0:02:58]}  c5 {[%clk 0:02:59]} 2. Nf3 {[%clk 0:02:58]}  g6 {[%clk 0:03:00]} 3. Bc4 {[%clk 0:02:54]}  Bg7 {[%clk 0:02:59]} 4. O-O {[%clk 0:02:51]}  Nc6 {[%clk 0:02:50]} 5. a3 {[%clk 0:02:44]}  d6 {[%clk 0:02:45]} 6. d3 {[%clk 0:02:33]}  Nf6 {[%clk 0:02:44]} 7. Nc3 {[%clk 0:02:30]}  Bg4 {[%clk 0:02:39]} 8. h3 {[%clk 0:02:28]}  Bxf3 {[%clk 0:02:40]} 9. Qxf3 {[%clk 0:02:28]}  O-O {[%clk 0:02:41]} 10. Ba2 {[%clk 0:02:19]}  Nd4 {[%clk 0:02:38]} 11. Qd1 {[%clk 0:02:19]}  b5 {[%clk 0:02:36]} 12. f4 {[%clk 0:02:11]}  Nd7 {[%clk 0:02:32]} 13. Nd5 {[%clk 0:02:08]}  e6 {[%clk 0:02:30]} 14. Ne3 {[%clk 0:02:08]}  Qb6 {[%clk 0:02:22]} 15. c3 {[%clk 0:02:07]}  Nc6 {[%clk 0:02:22]} 16. Kh1 {[%clk 0:02:00]}  Kh8 {[%clk 0:02:07]} 17. f5 {[%clk 0:01:57]}  exf5 {[%clk 0:02:02]} 18. exf5 {[%clk 0:01:57]}  Nce5 {[%clk 0:01:57]} 19. Nd5 {[%clk 0:01:53]}  Qd8 {[%clk 0:01:57]} 20. f6 {[%clk 0:01:45]}  Nxf6 {[%clk 0:01:51]} 21. Bg5 {[%clk 0:01:44]}  Nxd5 {[%clk 0:01:43]} 22. Bxd8 {[%clk 0:01:42]}  Ne3 {[%clk 0:01:44]} 23. Qe1 {[%clk 0:01:11]}  Nxf1 {[%clk 0:01:43]} 24. Bh4 {[%clk 0:01:04]}  Nxd3 {[%clk 0:01:33]} 25. Qxf1 {[%clk 0:01:04]}  c4 {[%clk 0:01:34]} 26. Be7 {[%clk 0:00:51]}  Rfe8 {[%clk 0:01:33]} 27. Bxd6 {[%clk 0:00:51]}  f5 {[%clk 0:01:29]} 28. a4 {[%clk 0:00:39]}  Rad8 {[%clk 0:01:26]} 29. Bg3 {[%clk 0:00:32]}  a6 {[%clk 0:01:24]} 30. axb5 {[%clk 0:00:31]}  axb5 {[%clk 0:01:25]} 31. Bh4 {[%clk 0:00:12]}  Ra8 {[%clk 0:01:19]} 32. b3 {[%clk 0:00:03]}  Bxc3 {[%clk 0:01:17]} 33. bxc4 {[%clk 0:00:03]}  bxc4 {[%clk 0:01:14]} 34. Rd1 {[%clk 0:00:01]}  Rxa2 {[%clk 0:01:12]} 35. Rxd3 {[%clk 0:00:01]}  cxd3 {[%clk 0:01:11]} 36. Qxd3 {[%clk 0:00:01]}  Be5 {[%clk 0:01:05]} 37. Bf2 {[%clk 0:00:00]}  Rxf2 {[%clk 0:01:04]} 0-1

[Event "November 21 Early 2023"]
[Site "https://www.chess.com"]
[Date "2023.11.21"]
[Round "1"]
[White "Pace, Christopher"]
[Black "Karthik Rajaa"]
[Result "0-1"]
[Board "110"]
[TimeControl "180+1"]
[WhiteFideId "2610167"]
[BlackFideId "25035215"]
[WhiteElo "2412"]
[BlackElo "2276"]
[WhiteTeam "CAN"]
[BlackTeam "IND"]
[WhiteClock "0:00:24"]
[BlackClock "0:00:14"]

1. e4 {[%clk 0:03:00]}  c6 {[%clk 0:02:59]} 2. d4 {[%clk 0:03:00]}  d5 {[%clk 0:03:00]} 3. Nc3 {[%clk 0:03:01]}  dxe4 {[%clk 0:02:59]} 4. Nxe4 {[%clk 0:03:02]}  Nf6 {[%clk 0:03:00]} 5. Nxf6+ {[%clk 0:03:03]}  exf6 {[%clk 0:03:01]} 6. c3 {[%clk 0:03:03]}  Bd6 {[%clk 0:03:01]} 7. Qc2 {[%clk 0:03:03]}  O-O {[%clk 0:03:01]} 8. Bd3 {[%clk 0:03:04]}  Re8+ {[%clk 0:03:02]} 9. Ne2 {[%clk 0:03:04]}  h5 {[%clk 0:03:03]} 10. Be3 {[%clk 0:02:56]}  Nd7 {[%clk 0:03:01]} 11. O-O-O {[%clk 0:02:55]}  Nf8 {[%clk 0:02:57]} 12. h3 {[%clk 0:02:54]}  Be6 {[%clk 0:02:48]} 13. Kb1 {[%clk 0:02:54]}  Rc8 {[%clk 0:02:33]} 14. g4 {[%clk 0:02:54]}  h4 {[%clk 0:02:32]} 15. Nf4 {[%clk 0:02:48]}  Bxf4 {[%clk 0:02:28]} 16. Bxf4 {[%clk 0:02:48]}  Bd5 {[%clk 0:02:23]} 17. Rhg1 {[%clk 0:02:48]}  Ne6 {[%clk 0:02:13]} 18. Bc1 {[%clk 0:02:48]}  Ng5 {[%clk 0:02:11]} 19. f4 {[%clk 0:02:32]}  Ne6 {[%clk 0:01:19]} 20. g5 {[%clk 0:02:31]}  fxg5 {[%clk 0:00:52]} 21. fxg5 {[%clk 0:02:29]}  c5 {[%clk 0:00:53]} 22. dxc5 {[%clk 0:02:20]}  Nxc5 {[%clk 0:00:40]} 23. Bh7+ {[%clk 0:02:17]}  Kh8 {[%clk 0:00:40]} 24. c4 {[%clk 0:02:18]}  Qb6 {[%clk 0:00:22]} 25. Rxd5 {[%clk 0:02:03]}  Na6 {[%clk 0:00:22]} 26. Rg4 {[%clk 0:01:42]}  Nb4 {[%clk 0:00:19]} 27. Qd1 {[%clk 0:01:07]}  Kxh7 {[%clk 0:00:18]} 28. Rxh4+ {[%clk 0:01:06]}  Kg8 {[%clk 0:00:18]} 29. Qh5 {[%clk 0:01:07]}  Qg6+ {[%clk 0:00:19]} 30. Qxg6 {[%clk 0:01:07]}  fxg6 {[%clk 0:00:19]} 31. Rd1 {[%clk 0:01:02]}  Re2 {[%clk 0:00:19]} 32. a3 {[%clk 0:01:00]}  Na6 {[%clk 0:00:20]} 33. Rhd4 {[%clk 0:00:59]}  Nc5 {[%clk 0:00:20]} 34. Ka2 {[%clk 0:00:58]}  Na4 {[%clk 0:00:18]} 35. R1d3 {[%clk 0:00:50]}  b5 {[%clk 0:00:15]} 36. Rd8+ {[%clk 0:00:42]}  Rxd8 {[%clk 0:00:16]} 37. Rxd8+ {[%clk 0:00:43]}  Kh7 {[%clk 0:00:16]} 38. cxb5 {[%clk 0:00:44]}  Nc3+ {[%clk 0:00:17]} 39. Kb3 {[%clk 0:00:44]}  Nxb5 {[%clk 0:00:17]} 40. a4 {[%clk 0:00:40]}  Nc7 {[%clk 0:00:17]} 41. Rd7 {[%clk 0:00:41]}  Ne6 {[%clk 0:00:15]} 42. Rxa7 {[%clk 0:00:39]}  Re4 {[%clk 0:00:15]} 43. a5 {[%clk 0:00:33]}  Nc5+ {[%clk 0:00:16]} 44. Kc2 {[%clk 0:00:33]}  Ra4 {[%clk 0:00:15]} 45. Be3 {[%clk 0:00:26]}  Ne4 {[%clk 0:00:13]} 46. a6 {[%clk 0:00:23]}  Nd6 {[%clk 0:00:13]} 47. Bc5 {[%clk 0:00:20]}  Rc4+ {[%clk 0:00:12]} 48. Kd3 {[%clk 0:00:20]}  Rxc5 {[%clk 0:00:13]} 49. Rd7 {[%clk 0:00:21]}  Rd5+ {[%clk 0:00:10]} 50. Ke2 {[%clk 0:00:20]}  Re5+ {[%clk 0:00:11]} 51. Kd1 {[%clk 0:00:19]}  Nc4 {[%clk 0:00:10]} 52. a7 {[%clk 0:00:19]}  Ra5 {[%clk 0:00:11]} 53. Rc7 {[%clk 0:00:18]}  Nxb2+ {[%clk 0:00:11]} 54. Kc2 {[%clk 0:00:19]}  Na4 {[%clk 0:00:11]} 55. Kb3 {[%clk 0:00:19]}  Nb6 {[%clk 0:00:10]} 56. Kb4 {[%clk 0:00:20]}  Ra1 {[%clk 0:00:09]} 57. Kb5 {[%clk 0:00:20]}  Nd5 {[%clk 0:00:10]} 58. Rd7 {[%clk 0:00:20]}  Nf4 {[%clk 0:00:10]} 59. Kb6 {[%clk 0:00:19]}  Nxh3 {[%clk 0:00:10]} 60. Kb7 {[%clk 0:00:19]}  Nxg5 {[%clk 0:00:10]} 61. a8=Q {[%clk 0:00:19]}  Rxa8 {[%clk 0:00:10]} 62. Kxa8 {[%clk 0:00:20]}  Ne6 {[%clk 0:00:10]} 63. Rd6 {[%clk 0:00:20]}  Nf4 {[%clk 0:00:10]} 64. Kb7 {[%clk 0:00:20]}  g5 {[%clk 0:00:10]} 65. Kc6 {[%clk 0:00:21]}  g4 {[%clk 0:00:11]} 66. Rd4 {[%clk 0:00:21]}  g5 {[%clk 0:00:09]} 67. Kc5 {[%clk 0:00:19]}  Ne6+ {[%clk 0:00:09]} 68. Kd5 {[%clk 0:00:19]}  Nxd4 {[%clk 0:00:09]} 69. Kxd4 {[%clk 0:00:20]}  Kg6 {[%clk 0:00:10]} 70. Ke3 {[%clk 0:00:21]}  Kf5 {[%clk 0:00:10]} 71. Kf2 {[%clk 0:00:22]}  Kf4 {[%clk 0:00:11]} 72. Kg1 {[%clk 0:00:22]}  Kg3 {[%clk 0:00:10]} 73. Kf1 {[%clk 0:00:23]}  Kh2 {[%clk 0:00:11]} 74. Kf2 {[%clk 0:00:24]}  g3+ {[%clk 0:00:11]} 75. Kf1 {[%clk 0:00:24]}  g2+ {[%clk 0:00:12]} 76. Ke2 {[%clk 0:00:25]}  g1=Q {[%clk 0:00:13]} 77. Kd3 {[%clk 0:00:26]}  g4 {[%clk 0:00:13]} 78. Kc4 {[%clk 0:00:24]}  g3 {[%clk 0:00:14]} 0-1

[Event "November 21 Early 2023"]
[Site "https://www.chess.com"]
[Date "2023.11.21"]
[Round "1"]
[White "Sattarov, Bobir"]
[Black "Darmanin, Jake"]
[Result "1-0"]
[Board "111"]
[TimeControl "180+1"]
[WhiteFideId "14203081"]
[BlackFideId "5601061"]
[WhiteElo "2351"]
[BlackElo "2119"]
[WhiteTeam "UZB"]
[BlackTeam "MLT"]
[WhiteClock "0:02:13"]
[BlackClock "0:02:03"]

1. e4 {[%clk 0:03:00]}  e5 {[%clk 0:02:58]} 2. Nf3 {[%clk 0:03:00]}  Nc6 {[%clk 0:02:58]} 3. Bc4 {[%clk 0:02:59]}  Nf6 {[%clk 0:02:57]} 4. d3 {[%clk 0:02:58]}  h6 {[%clk 0:02:55]} 5. Nc3 {[%clk 0:02:57]}  Bc5 {[%clk 0:02:53]} 6. Be3 {[%clk 0:02:54]}  Bxe3 {[%clk 0:02:44]} 7. fxe3 {[%clk 0:02:55]}  d6 {[%clk 0:02:43]} 8. a4 {[%clk 0:02:53]}  a6 {[%clk 0:02:43]} 9. O-O {[%clk 0:02:52]}  Be6 {[%clk 0:02:41]} 10. Nd2 {[%clk 0:02:52]}  d5 {[%clk 0:02:37]} 11. exd5 {[%clk 0:02:26]}  Nxd5 {[%clk 0:02:37]} 12. Nxd5 {[%clk 0:02:20]}  Bxd5 {[%clk 0:02:37]} 13. e4 {[%clk 0:02:19]}  Bxc4 {[%clk 0:02:34]} 14. Nxc4 {[%clk 0:02:20]}  O-O {[%clk 0:02:32]} 15. Kh1 {[%clk 0:02:20]}  b5 {[%clk 0:02:30]} 16. Ne3 {[%clk 0:02:17]}  g6 {[%clk 0:02:20]} 17. Nd5 {[%clk 0:02:15]}  Qd6 {[%clk 0:02:14]} 18. Rf6 {[%clk 0:02:13]}  Qc5 {[%clk 0:02:03]} 19. Rxc6 {[%clk 0:02:13]} 1-0

[Event "November 21 Early 2023"]
[Site "https://www.chess.com"]
[Date "2023.11.21"]
[Round "1"]
[White "Aradhya, Garg"]
[Black "Kubatko, Ivan"]
[Result "1/2-1/2"]
[Board "113"]
[TimeControl "180+1"]
[WhiteFideId "25006746"]
[BlackFideId "24111473"]
[WhiteElo "2323"]
[BlackElo "2285"]
[WhiteTeam "IND"]
[BlackTeam "RUS"]
[WhiteClock "0:01:14"]
[BlackClock "0:00:05"]

1. d4 {[%clk 0:03:00]}  f5 {[%clk 0:02:59]} 2. Nf3 {[%clk 0:03:00]}  Nf6 {[%clk 0:02:59]} 3. c4 {[%clk 0:02:58]}  e6 {[%clk 0:02:59]} 4. Nc3 {[%clk 0:02:56]}  Be7 {[%clk 0:02:57]} 5. g3 {[%clk 0:02:56]}  O-O {[%clk 0:02:57]} 6. Bg2 {[%clk 0:02:56]}  d6 {[%clk 0:02:57]} 7. O-O {[%clk 0:02:55]}  Ne4 {[%clk 0:02:56]} 8. Qc2 {[%clk 0:02:55]}  Nxc3 {[%clk 0:02:55]} 9. bxc3 {[%clk 0:02:56]}  Nc6 {[%clk 0:02:43]} 10. Rd1 {[%clk 0:02:55]}  Qe8 {[%clk 0:02:32]} 11. e4 {[%clk 0:02:55]}  e5 {[%clk 0:02:32]} 12. dxe5 {[%clk 0:02:53]}  dxe5 {[%clk 0:02:31]} 13. a4 {[%clk 0:02:45]}  f4 {[%clk 0:02:09]} 14. Ba3 {[%clk 0:02:41]}  Bg4 {[%clk 0:01:54]} 15. Rd3 {[%clk 0:02:40]}  Bxa3 {[%clk 0:01:36]} 16. Rxa3 {[%clk 0:02:41]}  Qe7 {[%clk 0:01:36]} 17. Rb3 {[%clk 0:02:40]}  b6 {[%clk 0:01:23]} 18. Nd2 {[%clk 0:02:03]}  fxg3 {[%clk 0:01:04]} 19. hxg3 {[%clk 0:02:01]}  Rad8 {[%clk 0:00:34]} 20. Nf1 {[%clk 0:02:00]}  Rxd3 {[%clk 0:00:22]} 21. Qxd3 {[%clk 0:02:01]}  Rd8 {[%clk 0:00:22]} 22. Qe3 {[%clk 0:02:00]}  Na5 {[%clk 0:00:20]} 23. Rb1 {[%clk 0:01:47]}  Nxc4 {[%clk 0:00:20]} 24. Qe1 {[%clk 0:01:48]}  Qd6 {[%clk 0:00:15]} 25. Ne3 {[%clk 0:01:44]}  Nxe3 {[%clk 0:00:15]} 26. Qxe3 {[%clk 0:01:45]}  h6 {[%clk 0:00:14]} 27. Bf1 {[%clk 0:01:43]}  Be6 {[%clk 0:00:14]} 28. a5 {[%clk 0:01:35]}  Qd2 {[%clk 0:00:13]} 29. Qf3 {[%clk 0:01:32]}  Rf8 {[%clk 0:00:11]} 30. Qe2 {[%clk 0:01:32]}  Qxe2 {[%clk 0:00:11]} 31. Bxe2 {[%clk 0:01:33]}  Rd8 {[%clk 0:00:12]} 32. axb6 {[%clk 0:01:32]}  cxb6 {[%clk 0:00:12]} 33. Ra1 {[%clk 0:01:28]}  Rd7 {[%clk 0:00:10]} 34. Ba6 {[%clk 0:01:26]}  Rc7 {[%clk 0:00:09]} 35. Ra3 {[%clk 0:01:25]}  Kf7 {[%clk 0:00:09]} 36. f3 {[%clk 0:01:25]}  Kf6 {[%clk 0:00:10]} 37. Kf2 {[%clk 0:01:26]}  Bc4 {[%clk 0:00:05]} 38. Bxc4 {[%clk 0:01:25]}  Rxc4 {[%clk 0:00:06]} 39. Rxa7 {[%clk 0:01:24]}  Rxc3 {[%clk 0:00:06]} 40. Rb7 {[%clk 0:01:23]}  Rb3 {[%clk 0:00:06]} 41. Rc7 {[%clk 0:01:23]}  Rb2+ {[%clk 0:00:06]} 42. Ke3 {[%clk 0:01:22]}  Rb3+ {[%clk 0:00:06]} 43. Kf2 {[%clk 0:01:22]}  Rb2+ {[%clk 0:00:05]} 44. Ke3 {[%clk 0:01:21]}  b5 {[%clk 0:00:06]} 45. Rc6+ {[%clk 0:01:15]}  Kf7 {[%clk 0:00:06]} 46. Rc5 {[%clk 0:01:15]}  Kf6 {[%clk 0:00:05]} 47. Rc6+ {[%clk 0:01:14]}  Kf7 {[%clk 0:00:05]} 48. Rc5 {[%clk 0:01:14]}  Kf6 {[%clk 0:00:05]} 49. Rc6+ {[%clk 0:01:14]} 1/2-1/2

[Event "November 21 Early 2023"]
[Site "https://www.chess.com"]
[Date "2023.11.21"]
[Round "1"]
[White "ChessLebaneseSalah"]
[Black "Goltsev, Dmitry"]
[Result "0-1"]
[Board "114"]
[TimeControl "180+1"]
[BlackFideId "24176710"]
[WhiteElo "2408"]
[BlackElo "2370"]
[BlackTeam "RUS"]
[WhiteClock "0:00:00"]
[BlackClock "0:00:12"]

1. e4 {[%clk 0:02:41]}  e6 {[%clk 0:03:00]} 2. d4 {[%clk 0:02:41]}  d5 {[%clk 0:03:00]} 3. e5 {[%clk 0:02:41]}  c5 {[%clk 0:03:01]} 4. c3 {[%clk 0:02:41]}  Nc6 {[%clk 0:03:01]} 5. Nf3 {[%clk 0:02:40]}  Nge7 {[%clk 0:03:01]} 6. Bd3 {[%clk 0:02:27]}  Nf5 {[%clk 0:03:01]} 7. Be3 {[%clk 0:02:15]}  cxd4 {[%clk 0:02:46]} 8. Bxd4 {[%clk 0:02:00]}  g5 {[%clk 0:02:44]} 9. Bxf5 {[%clk 0:01:52]}  Nxd4 {[%clk 0:02:43]} 10. Qxd4 {[%clk 0:01:41]}  exf5 {[%clk 0:02:41]} 11. e6 {[%clk 0:01:34]}  Rg8 {[%clk 0:02:41]} 12. exf7+ {[%clk 0:01:33]}  Kxf7 {[%clk 0:02:42]} 13. Ne5+ {[%clk 0:01:28]}  Ke6 {[%clk 0:02:10]} 14. O-O {[%clk 0:01:19]}  Qb6 {[%clk 0:02:06]} 15. Re1 {[%clk 0:01:10]}  Qxd4 {[%clk 0:02:04]} 16. cxd4 {[%clk 0:01:11]}  Kf6 {[%clk 0:02:03]} 17. Nc3 {[%clk 0:01:07]}  Be6 {[%clk 0:01:57]} 18. a3 {[%clk 0:01:07]}  a6 {[%clk 0:01:45]} 19. Rac1 {[%clk 0:01:07]}  Bd6 {[%clk 0:01:25]} 20. Na4 {[%clk 0:01:03]}  Rac8 {[%clk 0:01:14]} 21. Nc5 {[%clk 0:00:58]}  Rxc5 {[%clk 0:01:13]} 22. Rxc5 {[%clk 0:00:50]}  Bxc5 {[%clk 0:01:11]} 23. dxc5 {[%clk 0:00:51]}  d4 {[%clk 0:01:10]} 24. Nf3 {[%clk 0:00:45]}  d3 {[%clk 0:01:08]} 25. Rd1 {[%clk 0:00:42]}  Rd8 {[%clk 0:01:05]} 26. Rd2 {[%clk 0:00:27]}  Bc4 {[%clk 0:00:52]} 27. Ne1 {[%clk 0:00:23]}  Rd5 {[%clk 0:00:41]} 28. b4 {[%clk 0:00:17]}  g4 {[%clk 0:00:37]} 29. Kf1 {[%clk 0:00:16]}  Ke5 {[%clk 0:00:37]} 30. f3 {[%clk 0:00:15]}  Kd4 {[%clk 0:00:34]} 31. Kf2 {[%clk 0:00:09]}  Kc3 {[%clk 0:00:22]} 32. Rd1 {[%clk 0:00:07]}  d2 {[%clk 0:00:21]} 33. fxg4 {[%clk 0:00:04]}  fxg4 {[%clk 0:00:19]} 34. h3 {[%clk 0:00:03]}  dxe1=Q+ {[%clk 0:00:17]} 35. Rxe1 {[%clk 0:00:04]}  Rd2+ {[%clk 0:00:16]} 36. Kg3 {[%clk 0:00:04]}  gxh3 {[%clk 0:00:17]} 37. gxh3 {[%clk 0:00:03]}  Rd3+ {[%clk 0:00:18]} 38. Kg4 {[%clk 0:00:03]}  Kb2 {[%clk 0:00:19]} 39. Re7 {[%clk 0:00:03]}  Bd5 {[%clk 0:00:15]} 40. Rxh7 {[%clk 0:00:02]}  Kxa3 {[%clk 0:00:15]} 41. b5 {[%clk 0:00:01]}  axb5 {[%clk 0:00:14]} 42. h4 {[%clk 0:00:00]}  b4 {[%clk 0:00:12]} 0-1

[Event "November 21 Early 2023"]
[Site "https://www.chess.com"]
[Date "2023.11.21"]
[Round "1"]
[White "Poormosavi, Seyed Kian"]
[Black "Xie, Bryan"]
[Result "0-1"]
[Board "121"]
[TimeControl "180+1"]
[WhiteFideId "12585807"]
[BlackFideId "30941296"]
[WhiteElo "2296"]
[BlackElo "2033"]
[WhiteTeam "IRI"]
[BlackTeam "USA"]
[WhiteClock "0:01:30"]
[BlackClock "0:01:07"]

1. Nf3 {[%clk 0:03:00]}  d5 {[%clk 0:02:13]} 2. g3 {[%clk 0:02:34]}  Nf6 {[%clk 0:02:07]} 3. Bg2 {[%clk 0:02:34]}  Bf5 {[%clk 0:01:59]} 4. O-O {[%clk 0:02:34]}  e6 {[%clk 0:01:59]} 5. d3 {[%clk 0:02:34]}  h6 {[%clk 0:02:00]} 6. c4 {[%clk 0:02:32]}  c6 {[%clk 0:02:00]} 7. cxd5 {[%clk 0:02:32]}  exd5 {[%clk 0:02:01]} 8. Nc3 {[%clk 0:02:32]}  Nbd7 {[%clk 0:02:02]} 9. Nd4 {[%clk 0:02:33]}  Bh7 {[%clk 0:02:02]} 10. e4 {[%clk 0:02:33]}  Nc5 {[%clk 0:02:01]} 11. b4 {[%clk 0:02:14]}  Ne6 {[%clk 0:01:47]} 12. Nxe6 {[%clk 0:02:07]}  fxe6 {[%clk 0:01:48]} 13. Qh5+ {[%clk 0:01:52]}  Nxh5 {[%clk 0:01:45]} 14. a3 {[%clk 0:01:49]}  Be7 {[%clk 0:01:43]} 15. Bb2 {[%clk 0:01:48]}  Bf6 {[%clk 0:01:41]} 16. Rac1 {[%clk 0:01:47]}  O-O {[%clk 0:01:30]} 17. Na4 {[%clk 0:01:47]}  Bxb2 {[%clk 0:01:28]} 18. Nxb2 {[%clk 0:01:47]}  Qf6 {[%clk 0:01:27]} 19. Na4 {[%clk 0:01:47]}  Qd4 {[%clk 0:01:28]} 20. Nc5 {[%clk 0:01:47]}  Rf6 {[%clk 0:01:23]} 21. Nxb7 {[%clk 0:01:47]}  Raf8 {[%clk 0:01:24]} 22. Rc2 {[%clk 0:01:44]}  Qxd3 {[%clk 0:01:24]} 23. Rfc1 {[%clk 0:01:39]}  Bxe4 {[%clk 0:01:23]} 24. Nc5 {[%clk 0:01:37]}  Qd4 {[%clk 0:01:14]} 25. Nxe4 {[%clk 0:01:32]}  dxe4 {[%clk 0:01:07]} 26. Rf1 {[%clk 0:01:30]}  e3 {[%clk 0:01:07]} 0-1

[Event "November 21 Early 2023"]
[Site "https://www.chess.com"]
[Date "2023.11.21"]
[Round "1"]
[White "Priasmoro, Novendra"]
[Black "Spichkin, Alexander"]
[Result "1-0"]
[Board "127"]
[TimeControl "180+1"]
[WhiteFideId "7105029"]
[BlackFideId "4144074"]
[WhiteElo "2412"]
[BlackElo "1968"]
[WhiteTeam "INA"]
[BlackTeam "RUS"]
[WhiteClock "0:01:11"]
[BlackClock "0:01:04"]

1. f3 {[%clk 0:02:38]}  d6 {[%clk 0:02:58]} 2. g3 {[%clk 0:02:38]}  c6 {[%clk 0:02:58]} 3. Nh3 {[%clk 0:02:39]}  Nd7 {[%clk 0:02:58]} 4. Nf2 {[%clk 0:02:40]}  h6 {[%clk 0:02:58]} 5. Bg2 {[%clk 0:02:41]}  g5 {[%clk 0:02:59]} 6. O-O {[%clk 0:02:42]}  Bg7 {[%clk 0:02:59]} 7. e4 {[%clk 0:02:43]}  h5 {[%clk 0:02:59]} 8. d4 {[%clk 0:02:43]}  e5 {[%clk 0:02:57]} 9. dxe5 {[%clk 0:02:41]}  Nxe5 {[%clk 0:02:53]} 10. Nd3 {[%clk 0:02:38]}  g4 {[%clk 0:02:42]} 11. Nxe5 {[%clk 0:02:36]}  Bxe5 {[%clk 0:02:41]} 12. f4 {[%clk 0:02:35]}  Qb6+ {[%clk 0:02:40]} 13. Kh1 {[%clk 0:02:33]}  h4 {[%clk 0:02:25]} 14. gxh4 {[%clk 0:02:16]}  Bxb2 {[%clk 0:02:17]} 15. Bxb2 {[%clk 0:02:15]}  Qxb2 {[%clk 0:02:17]} 16. Nd2 {[%clk 0:02:15]}  Rxh4 {[%clk 0:02:13]} 17. Nc4 {[%clk 0:02:11]}  Qh8 {[%clk 0:02:11]} 18. Nxd6+ {[%clk 0:02:07]}  Kf8 {[%clk 0:02:10]} 19. Qd3 {[%clk 0:01:51]}  Be6 {[%clk 0:01:59]} 20. Qg3 {[%clk 0:01:46]}  Rd8 {[%clk 0:01:51]} 21. Rad1 {[%clk 0:01:45]}  Bc4 {[%clk 0:01:48]} 22. Nxc4 {[%clk 0:01:44]}  Re8 {[%clk 0:01:45]} 23. Ne5 {[%clk 0:01:41]}  Nf6 {[%clk 0:01:45]} 24. Rd6 {[%clk 0:01:38]}  Nxe4 {[%clk 0:01:31]} 25. Bxe4 {[%clk 0:01:30]}  Rh3 {[%clk 0:01:31]} 26. Qxg4 {[%clk 0:01:27]}  Rxh2+ {[%clk 0:01:32]} 27. Kg1 {[%clk 0:01:28]}  Rh4 {[%clk 0:01:26]} 28. Qf5 {[%clk 0:01:22]}  Qg7+ {[%clk 0:01:18]} 29. Rg6 {[%clk 0:01:22]}  Rxe5 {[%clk 0:01:15]} 30. fxe5 {[%clk 0:01:16]}  Qh7 {[%clk 0:01:06]} 31. Qc8+ {[%clk 0:01:15]}  Ke7 {[%clk 0:01:06]} 32. Qc7+ {[%clk 0:01:11]}  Kf8 {[%clk 0:01:04]} 33. Qd8# {[%clk 0:01:11]} 1-0

[Event "November 21 Early 2023"]
[Site "https://www.chess.com"]
[Date "2023.11.21"]
[Round "1"]
[White "Su, Dion"]
[Black "Matinian, Nikita"]
[Result "0-1"]
[Board "128"]
[TimeControl "180+1"]
[WhiteFideId "2029731"]
[BlackFideId "24129100"]
[WhiteElo "2400"]
[BlackElo "2417"]
[WhiteTeam "USA"]
[BlackTeam "FID"]
[WhiteClock "0:01:04"]
[BlackClock "0:02:26"]

1. e4 {[%clk 0:03:00]}  c5 {[%clk 0:02:59]} 2. Nf3 {[%clk 0:03:01]}  e6 {[%clk 0:02:58]} 3. d4 {[%clk 0:03:02]}  cxd4 {[%clk 0:02:59]} 4. Nxd4 {[%clk 0:03:03]}  Nc6 {[%clk 0:03:00]} 5. Nc3 {[%clk 0:03:02]}  Qc7 {[%clk 0:03:00]} 6. Ndb5 {[%clk 0:03:02]}  Qb8 {[%clk 0:02:59]} 7. g3 {[%clk 0:03:03]}  a6 {[%clk 0:02:56]} 8. Nd4 {[%clk 0:03:03]}  Bc5 {[%clk 0:02:54]} 9. Nb3 {[%clk 0:03:01]}  Ba7 {[%clk 0:02:54]} 10. Bg2 {[%clk 0:03:02]}  Nf6 {[%clk 0:02:54]} 11. Qe2 {[%clk 0:03:01]}  b5 {[%clk 0:02:54]} 12. Be3 {[%clk 0:02:58]}  b4 {[%clk 0:02:54]} 13. Na4 {[%clk 0:02:54]}  a5 {[%clk 0:02:54]} 14. O-O-O {[%clk 0:02:50]}  Ba6 {[%clk 0:02:53]} 15. Qd2 {[%clk 0:02:24]}  Bb5 {[%clk 0:02:51]} 16. Nac5 {[%clk 0:02:03]}  a4 {[%clk 0:02:51]} 17. Nxd7 {[%clk 0:01:53]}  Bxe3 {[%clk 0:02:51]} 18. fxe3 {[%clk 0:01:47]}  axb3 {[%clk 0:02:41]} 19. Nxf6+ {[%clk 0:01:30]}  gxf6 {[%clk 0:02:40]} 20. Qd7+ {[%clk 0:01:30]}  Kf8 {[%clk 0:02:40]} 21. cxb3 {[%clk 0:01:27]}  Rxa2 {[%clk 0:02:31]} 22. Bf1 {[%clk 0:01:06]}  Ra1+ {[%clk 0:02:28]} 23. Kc2 {[%clk 0:01:05]}  Rxd1 {[%clk 0:02:26]} 24. Qxd1 {[%clk 0:01:04]} 0-1

[Event "November 21 Early 2023"]
[Site "https://www.chess.com"]
[Date "2023.11.21"]
[Round "1"]
[White "MKlose11"]
[Black "Gundam, Rohit"]
[Result "0-1"]
[Board "129"]
[TimeControl "180+1"]
[BlackFideId "75002809"]
[WhiteElo "2677"]
[BlackElo "2400"]
[BlackTeam "USA"]
[WhiteClock "0:01:00"]
[BlackClock "0:00:43"]

1. e4 {[%clk 0:02:56]}  e5 {[%clk 0:02:59]} 2. Nf3 {[%clk 0:02:55]}  Nc6 {[%clk 0:02:58]} 3. d4 {[%clk 0:02:56]}  exd4 {[%clk 0:02:58]} 4. Bc4 {[%clk 0:02:51]}  Bc5 {[%clk 0:02:57]} 5. Ng5 {[%clk 0:02:44]}  Nh6 {[%clk 0:02:57]} 6. Nxf7 {[%clk 0:02:43]}  Nxf7 {[%clk 0:02:58]} 7. Bxf7+ {[%clk 0:02:44]}  Kxf7 {[%clk 0:02:58]} 8. Qh5+ {[%clk 0:02:44]}  g6 {[%clk 0:02:53]} 9. Qxc5 {[%clk 0:02:45]}  d5 {[%clk 0:02:52]} 10. e5 {[%clk 0:02:45]}  Re8 {[%clk 0:02:09]} 11. O-O {[%clk 0:02:41]}  Rxe5 {[%clk 0:02:08]} 12. Bf4 {[%clk 0:02:39]}  Re4 {[%clk 0:02:06]} 13. Bg3 {[%clk 0:02:39]}  Bf5 {[%clk 0:01:52]} 14. Nd2 {[%clk 0:02:38]}  Re2 {[%clk 0:01:51]} 15. Rad1 {[%clk 0:02:34]}  Qd7 {[%clk 0:01:43]} 16. Qb5 {[%clk 0:02:30]}  Rae8 {[%clk 0:01:34]} 17. Nf3 {[%clk 0:02:11]}  Bxc2 {[%clk 0:01:33]} 18. Rc1 {[%clk 0:02:05]}  d3 {[%clk 0:01:30]} 19. Qxb7 {[%clk 0:01:56]}  Rb8 {[%clk 0:01:04]} 20. Qa6 {[%clk 0:01:36]}  Rxb2 {[%clk 0:01:03]} 21. h3 {[%clk 0:01:36]}  Rb4 {[%clk 0:00:57]} 22. a3 {[%clk 0:01:31]}  Rb6 {[%clk 0:00:53]} 23. Ne5+ {[%clk 0:01:00]}  Rxe5 {[%clk 0:00:43]} 0-1